bitfinex/quotes_SOLUSD_20250621
["timestamp","ask_amount","ask_price","bid_price","bid_amount"]
[1750500518870,1.4964557,142.26,142.25,39.84011501]
[1750500521552,1.4964557,142.26,142.25,33.74987697]
[1750500521754,1.4964557,142.26,142.25,39.84011501]
[1750500524463,1.4964557,142.26,142.25,7.02987697]
[1750500524859,2.1764557,142.26,142.25,7.02987697]
[1750500526371,0.68,142.25,142.24,7.0303712]
[1750500528476,19.32964886,142.25,142.24,7.0303712]
[1750500529564,19.32964886,142.25,142.23,17.57686207]
[1750500529565,19.32964886,142.25,142.23,24.60772756]
[1750500529764,0.68,142.24,142.23,24.60772756]
[1750500532187,5.93113862,142.24,142.22,7.03135986]
[1750500532364,0.68,142.23,142.22,7.03135986]
[1750500535599,19.32964886,142.24,142.22,24.60975952]
[1750500537198,5.25832583,142.23,142.22,24.60975952]
[1750500537402,19.32964886,142.24,142.22,24.60975952]
[1750500539098,18.64964886,142.24,142.22,25.32975952]
[1750500540286,19.32964886,142.24,142.22,24.60975952]
[1750500541770,18.64964886,142.24,142.22,24.60975952]
[1750500542073,18.64964886,142.24,142.22,25.32975952]
[1750500543696,1.4964557,142.26,142.23,6.09023804]
[1750500543697,2.1764557,142.26,142.23,6.09023804]
[1750500543883,1.4964557,142.26,142.25,6.09023804]
[1750500544083,6.75183747,142.26,142.25,6.81023804]
[1750500544983,1.4964557,142.26,142.25,6.81023804]
[1750500546002,1.4964557,142.26,142.25,13.84011501]
[1750500552415,1.4964557,142.26,142.25,7.02987697]
[1750500552591,1.4964557,142.26,142.25,13.84011501]
[1750500561096,1.4964557,142.26,142.25,7.74987697]
[1750500561408,1.4964557,142.26,142.25,13.84011501]
[1750500561917,1.4964557,142.26,142.25,13.12011501]
[1750500562317,1.4964557,142.26,142.25,7.02987697]
[1750500562694,2.2064557,142.26,142.25,13.12011501]
[1750500563419,1.4964557,142.26,142.25,13.12011501]
[1750500563800,1.4964557,142.26,142.25,13.84011501]
[1750500570230,1.4964557,142.26,142.25,7.74987697]
[1750500570431,1.4964557,142.26,142.25,13.84011501]
[1750500572211,1.4964557,142.26,142.25,7.74987697]
[1750500572409,1.4964557,142.26,142.25,13.84011501]
[1750500573234,1.4964557,142.26,142.25,39.84011501]
[1750500573819,1.4964557,142.26,142.25,13.84011501]
[1750500574118,2.6254808,142.34,142.31,30.4511902]
[1750500574320,2.6254808,142.35,142.33,6.09023804]
[1750500574535,2.6254808,142.35,142.34,6.09023804]
[1750500574735,5.25142287,142.35,142.34,6.09023804]
[1750500574910,11.73396366,142.36,142.34,6.09023804]
[1750500575108,25.13218965,142.36,142.35,6.09023804]
[1750500575312,5.24829865,142.36,142.35,6.09023804]
[1750500575916,5.24829865,142.36,142.35,13.11517657]
[1750500576813,6.41467945,142.37,142.35,16.52921417]
[1750500577214,5.24829865,142.36,142.35,16.52921417]
[1750500577629,5.24829865,142.37,142.35,16.52921417]
[1750500577826,23.89794751,142.37,142.36,16.5287207]
[1750500578133,11.75532784,142.38,142.36,17.2487207]
[1750500578322,11.75532784,142.38,142.37,9.50427564]
[1750500578722,6.50702919,142.38,142.37,9.50427564]
[1750500579342,6.50702919,142.38,142.37,10.22427564]
[1750500579540,6.78919865,142.4,142.37,10.22427564]
[1750500579720,20.19054886,142.4,142.39,9.50427564]
[1750500579911,20.19054886,142.4,142.39,16.52724073]
[1750500581035,18.64964886,142.4,142.39,16.52724073]
[1750500582849,18.64964886,142.4,142.39,7.02296509]
[1750500583218,18.64964886,142.4,142.39,16.52724073]
[1750500584138,19.35964886,142.4,142.39,16.52724073]
[1750500586643,19.35964886,142.4,142.37,7.02395167]
[1750500586844,19.35964886,142.4,142.38,9.50427564]
[1750500587149,18.64964886,142.4,142.38,9.50427564]
[1750500587334,0.73,142.39,142.38,9.50427564]
[1750500588832,0.73,142.39,142.38,16.52773399]
[1750500590134,19.37964886,142.39,142.38,7.02345835]
[1750500592427,18.64964886,142.39,142.38,7.02345835]
[1750500592929,19.37964886,142.39,142.38,7.02345835]
[1750500594958,18.64964886,142.39,142.38,7.02345835]
[1750500596031,18.64964886,142.39,142.38,16.52773399]
[1750500596232,18.64964886,142.39,142.38,7.02345835]
[1750500596432,18.64964886,142.39,142.38,16.52773399]
[1750500596647,0.73,142.41,142.38,16.52773399]
[1750500596648,18.64964886,142.41,142.38,34.78637986]
[1750500596852,5.24829865,142.43,142.4,35.50427564]
[1750500597031,0.73,142.49,142.43,0.7]
[1750500597230,5.21540423,142.51,142.43,0.7]
[1750500597567,10.7628899,142.53,142.43,0.7]
[1750500597568,0.73,142.49,142.46,9.50427564]
[1750500597773,9.50427564,142.5,142.46,9.50427564]
[1750500598065,19.37964886,142.48,142.41,34.1833]
[1750500598255,19.37964886,142.48,142.46,9.50427564]
[1750500598778,0.73,142.45,142.42,9.50427564]
[1750500599075,0.73,142.45,142.41,7.02197879]
[1750500599076,18.64964886,142.46,142.43,9.50427564]
[1750500599358,19.37964886,142.46,142.44,9.50427564]
[1750500600459,9.50427564,142.45,142.41,7.02197879]
[1750500600659,9.50427564,142.43,142.4,7.02247191]
[1750500601444,0.73,142.42,142.4,7.02247191]
[1750500601747,9.50427564,142.43,142.4,7.02247191]
[1750500601943,0.73,142.42,142.4,7.02247191]
[1750500602254,0.73,142.41,142.39,9.50427564]
[1750500602937,0.73,142.41,142.38,17.55753429]
[1750500603138,19.37964886,142.39,142.37,16.52822731]
[1750500603356,18.64964886,142.39,142.37,16.52822731]
[1750500603868,18.64964886,142.39,142.38,9.50427564]
[1750500604251,18.64964886,142.39,142.38,16.52773399]
[1750500605366,18.64964886,142.39,142.38,7.02345835]
[1750500605661,18.64964886,142.39,142.38,16.52773399]
[1750500606664,0.73,142.39,142.38,7.02345835]
[1750500609570,10.23427564,142.41,142.38,7.02345835]
[1750500609958,10.23427564,142.41,142.38,16.52773399]
[1750500610154,0.73,142.4,142.38,16.52773399]
[1750500610359,18.64964886,142.39,142.38,7.02345835]
[1750500610550,18.64964886,142.39,142.38,16.52773399]
[1750500610754,5.21107707,142.43,142.39,0.7]
[1750500611072,32.44016319,142.45,142.42,9.50427564]
[1750500611359,18.64964886,142.44,142.39,0.7]
[1750500611565,10.92124026,142.45,142.43,9.50427564]
[1750500611757,5.71016319,142.45,142.44,9.50427564]
[1750500611954,24.35981205,142.45,142.44,9.50427564]
[1750500612472,5.71016319,142.45,142.44,9.50427564]
[1750500612673,5.71016319,142.45,142.44,10.20427564]
[1750500612976,5.71016319,142.45,142.44,17.22477549]
[1750500614274,5.89107707,142.49,142.45,0.74]
[1750500614474,18.64964886,142.48,142.47,9.50427564]
[1750500614659,23.86072593,142.48,142.47,9.50427564]
[1750500614975,18.64964886,142.48,142.47,16.52329718]
[1750500615681,24.54072593,142.48,142.47,7.01902154]
[1750500615880,19.32964886,142.48,142.47,7.01902154]
[1750500616662,24.54072593,142.48,142.47,9.50427564]
[1750500616851,19.32964886,142.48,142.47,9.50427564]
[1750500617056,24.54072593,142.48,142.47,9.50427564]
[1750500617263,19.32964886,142.48,142.47,9.50427564]
[1750500617466,23.86072593,142.48,142.46,9.50427564]
[1750500617670,5.89107707,142.47,142.46,9.50427564]
[1750500617980,0.68,142.47,142.46,9.50427564]
[1750500618569,5.89107707,142.47,142.46,16.52378988]
[1750500618783,0.68,142.47,142.46,16.52378988]
[1750500618983,5.89107707,142.47,142.46,16.52378988]
[1750500619158,0.68,142.47,142.46,16.52378988]
[1750500619359,5.89107707,142.47,142.46,16.52378988]
[1750500619572,5.89107707,142.48,142.46,16.52378988]
[1750500619784,5.21107707,142.47,142.46,16.52378988]
[1750500622271,5.21107707,142.48,142.46,16.52378988]
[1750500622475,5.21107707,142.47,142.46,16.52378988]
[1750500622775,5.21107707,142.48,142.46,16.52378988]
[1750500622976,5.21107707,142.47,142.46,16.52378988]
[1750500623175,5.21107707,142.48,142.46,16.52378988]
[1750500623381,5.21107707,142.47,142.46,16.52378988]
[1750500623585,5.21107707,142.48,142.46,16.52378988]
[1750500623784,23.86072593,142.47,142.46,16.52378988]
[1750500623986,18.64964886,142.47,142.46,16.52378988]
[1750500624188,23.86072593,142.47,142.46,16.52378988]
[1750500624379,18.64964886,142.47,142.46,16.52378988]
[1750500624573,23.86072593,142.47,142.46,16.52378988]
[1750500624763,18.64964886,142.47,142.45,7.02000702]
[1750500624964,23.86072593,142.47,142.46,9.50427564]
[1750500625261,18.64964886,142.47,142.46,9.50427564]
[1750500625480,23.86072593,142.47,142.46,9.50427564]
[1750500625684,18.64964886,142.47,142.46,9.50427564]
[1750500625869,18.64964886,142.47,142.46,16.52378988]
[1750500628365,18.64964886,142.47,142.46,7.01951424]
[1750500628573,18.64964886,142.47,142.46,16.52378988]
[1750500636992,18.64964886,142.48,142.46,34.0725755]
[1750500637201,19.32964886,142.47,142.46,16.52378988]
[1750500638315,19.32964886,142.47,142.46,7.01951424]
[1750500638689,19.32964886,142.47,142.46,16.52378988]
[1750500639795,19.32964886,142.47,142.46,7.01951424]
[1750500640301,24.54072593,142.47,142.46,7.01951424]
[1750500640614,19.32964886,142.47,142.46,7.01951424]
[1750500640896,24.54072593,142.47,142.46,7.01951424]
[1750500641198,19.32964886,142.47,142.46,7.01951424]
[1750500641381,24.54072593,142.47,142.46,7.01951424]
[1750500641579,19.32964886,142.47,142.46,7.01951424]
[1750500641796,24.54072593,142.47,142.46,7.01951424]
[1750500641994,18.64964886,142.45,142.44,7.02032834]
[1750500642176,5.89107707,142.45,142.42,7.02148574]
[1750500642375,19.32964886,142.43,142.42,16.52576138]
[1750500642770,19.32964886,142.43,142.42,7.02148574]
[1750500643279,19.32964886,142.43,142.42,16.52576138]
[1750500645090,18.64964886,142.43,142.42,16.52576138]
[1750500648180,23.86072593,142.43,142.42,16.52576138]
[1750500648383,24.59660498,142.43,142.42,16.52576138]
[1750500648582,19.35964886,142.43,142.42,16.52576138]
[1750500649375,24.59660498,142.43,142.42,7.02148574]
[1750500649595,19.35964886,142.43,142.42,7.02148574]
[1750500649793,24.59660498,142.43,142.42,7.02148574]
[1750500650090,19.35964886,142.43,142.42,7.02148574]
[1750500650287,23.88660498,142.43,142.42,16.52576138]
[1750500650489,23.88660498,142.45,142.42,16.52576138]
[1750500650696,18.64964886,142.43,142.42,17.26576138]
[1750500651286,23.89020409,142.45,142.42,17.26576138]
[1750500651484,18.64964886,142.43,142.42,9.50427564]
[1750500652482,18.64964886,142.43,142.42,16.52576138]
[1750500653180,23.8943154,142.43,142.42,16.52576138]
[1750500655383,23.8943154,142.43,142.42,17.26576138]
[1750500655611,23.8943154,142.43,142.42,16.52576138]
[1750500657503,23.8943154,142.43,142.42,17.26576138]
[1750500662114,23.8943154,142.43,142.42,16.52576138]
[1750500662915,23.8943154,142.43,142.42,7.02148574]
[1750500663118,23.8943154,142.43,142.42,16.52576138]
[1750500664702,23.8943154,142.43,142.42,7.02148574]
[1750500664908,23.8943154,142.43,142.42,16.52576138]
[1750500665326,23.8943154,142.43,142.41,7.02151351]
[1750500665512,18.64964886,142.44,142.42,9.50427564]
[1750500665703,18.64964886,142.44,142.43,9.50427564]
[1750500665704,21.27450137,142.44,142.43,9.50427564]
[1750500665899,26.52374483,142.44,142.43,16.5252684]
[1750500667699,26.52374483,142.44,142.43,7.02099276]
[1750500667898,26.52374483,142.44,142.43,16.5252684]
[1750500668527,26.52386555,142.44,142.43,16.5252684]
[1750500669324,23.89889232,142.44,142.43,16.5252684]
[1750500669625,26.52395461,142.44,142.43,16.5252684]
[1750500670312,23.89889232,142.44,142.43,16.5252684]
[1750500671025,23.89889232,142.44,142.43,13.09672547]
[1750500671525,26.52415979,142.44,142.43,13.09672547]
[1750500671828,23.89889232,142.44,142.43,13.09672547]
[1750500672119,26.52415052,142.44,142.43,13.09672547]
[1750500673030,23.89889232,142.44,142.43,13.09672547]
[1750500673719,23.89889232,142.44,142.42,7.76148574]
[1750500673914,18.64964886,142.44,142.43,6.07573271]
[1750500674103,23.90063654,142.44,142.43,6.07573271]
[1750500674722,23.90063654,142.44,142.43,13.09672547]
[1750500676305,23.90063654,142.44,142.43,7.02099276]
[1750500676506,23.90063654,142.44,142.43,13.09672547]
[1750500677414,23.90063654,142.44,142.43,7.02099276]
[1750500677415,24.63063654,142.44,142.43,7.02099276]
[1750500677816,27.25783608,142.44,142.43,7.02099276]
[1750500678356,32.60369262,142.44,142.41,7.02197879]
[1750500678636,0.73,142.42,142.41,7.02197879]
[1750500678837,8.60831105,142.42,142.41,7.02197879]
[1750500681041,5.98098768,142.42,142.41,7.02197879]
[1750500681247,8.60928049,142.42,142.41,7.02197879]
[1750500683939,5.25098768,142.42,142.41,7.02197879]
[1750500684146,7.8796614,142.42,142.41,7.02197879]
[1750500684546,8.6096614,142.42,142.41,7.02197879]
[1750500686851,8.6096614,142.42,142.4,8.17589062]
[1750500686852,26.52967861,142.42,142.4,8.17589062]
[1750500687030,36.75920234,142.41,142.4,1.15358146]
[1750500687236,27.25967861,142.41,142.4,8.17605337]
[1750500688331,27.25967861,142.41,142.4,1.15358146]
[1750500688558,36.75920234,142.41,142.4,1.15358146]
[1750500689656,27.25967861,142.41,142.4,1.15358146]
[1750500689843,36.75920234,142.41,142.4,1.15358146]
[1750500692635,27.25765686,142.41,142.4,1.15358146]
[1750500694358,26.52765686,142.41,142.4,17.6755771]
[1750500694546,23.90063654,142.41,142.4,18.3955771]
[1750500695441,23.90063654,142.41,142.4,8.89605337]
[1750500695756,23.90063654,142.41,142.4,18.3955771]
[1750500696951,23.90063654,142.41,142.4,8.89605337]
[1750500697147,23.90063654,142.41,142.4,17.6755771]
[1750500697958,23.90063654,142.41,142.4,18.3955771]
[1750500698262,5.25098768,142.41,142.4,18.3955771]
[1750500698557,6.54619515,142.48,142.43,26.0]
[1750500698739,26.52593852,142.47,142.46,9.49952373]
[1750500699962,26.52593852,142.47,142.46,10.21952373]
[1750500700363,26.52593852,142.47,142.46,17.23903797]
[1750500701238,23.90007379,142.47,142.46,17.23903797]
[1750500701445,5.25042493,142.47,142.46,17.23903797]
[1750500702462,18.64964886,142.48,142.46,17.23903797]
[1750500702660,18.64964886,142.48,142.47,9.49952373]
[1750500702867,23.89411819,142.48,142.47,9.49952373]
[1750500703066,23.89411819,142.48,142.47,10.21952373]
[1750500703867,5.24446933,142.48,142.47,17.23854527]
[1750500704067,5.43280178,142.49,142.48,0.72]
[1750500704369,5.43280178,142.49,142.48,10.21952373]
[1750500704541,5.43280178,142.49,142.48,0.72]
[1750500704742,5.43280178,142.49,142.48,10.21952373]
[1750500705572,5.43280178,142.49,142.48,17.23805264]
[1750500710768,5.43280178,142.49,142.48,7.73852891]
[1750500710971,24.08245064,142.49,142.48,7.01852891]
[1750500711272,24.08245064,142.49,142.48,16.51805264]
[1750500712573,24.08245064,142.49,142.48,7.01852891]
[1750500712871,24.08245064,142.49,142.48,16.51805264]
[1750500714260,5.43280178,142.49,142.48,17.20805264]
[1750500722894,5.43280178,142.49,142.48,13.779046]
[1750500724184,5.43280178,142.49,142.48,13.089046]
[1750500724389,24.08245064,142.49,142.48,13.089046]
[1750500724895,5.43280178,142.49,142.48,13.779046]
[1750500725065,18.64964886,142.52,142.49,0.69]
[1750500725389,18.64964886,142.52,142.51,6.07051709]
[1750500725697,19.32964886,142.52,142.51,6.07051709]
[1750500726381,18.64964886,142.52,142.51,6.07051709]
[1750500726975,18.64964886,142.52,142.5,7.01754385]
[1750500727173,19.32964886,142.52,142.51,6.07051709]
[1750500729499,18.64964886,142.52,142.51,13.08756852]
[1750500729797,1.4964557,142.54,142.53,26.0]
[1750500730102,1.4964557,142.54,142.53,32.07051709]
[1750500730294,1.4964557,142.54,142.53,32.76051709]
[1750500730494,1.4964557,142.54,142.53,26.69]
[1750500730809,1.4964557,142.54,142.53,36.16748451]
[1750500731394,1.4964557,142.54,142.53,35.47748451]
[1750500731586,1.4964557,142.54,142.53,42.4935513]
[1750500733300,20.14610456,142.54,142.53,22.5135513]
[1750500735995,20.14610456,142.54,142.53,23.2335513]
[1750500736191,20.14610456,142.54,142.53,22.5135513]
[1750500737419,1.4964557,142.54,142.53,22.5135513]
[1750500739513,1.4964557,142.54,142.53,13.03606679]
[1750500739902,1.4964557,142.54,142.53,22.5135513]
[1750500740518,1.4964557,142.54,142.53,23.2335513]
[1750500741830,6.72929901,142.54,142.53,23.2335513]
[1750500741995,1.4964557,142.54,142.53,23.2335513]
[1750500742624,6.73280842,142.54,142.53,23.2335513]
[1750500742803,1.4964557,142.54,142.53,23.2335513]
[1750500743123,6.73280842,142.54,142.53,23.2335513]
[1750500743296,1.4964557,142.54,142.53,23.2335513]
[1750500743816,6.73366243,142.54,142.53,23.2335513]
[1750500744118,6.73366243,142.54,142.53,22.5135513]
[1750500745328,6.73366243,142.54,142.53,13.03606679]
[1750500745504,6.73366243,142.54,142.53,22.5135513]
[1750500746527,6.73366243,142.54,142.53,23.2335513]
[1750500746730,1.4964557,142.54,142.53,23.2335513]
[1750500747828,1.4964557,142.54,142.53,13.75606679]
[1750500748125,1.4964557,142.54,142.53,23.2335513]
[1750500750641,5.23899164,142.57,142.56,26.0]
[1750500750808,5.23772656,142.59,142.56,35.47748451]
[1750500751006,5.23772656,142.58,142.57,0.72]
[1750500751323,5.23772656,142.58,142.57,10.19748451]
[1750500751529,26.50637852,142.61,142.57,9.47748451]
[1750500751711,7.85672966,142.6,142.58,24.54762238]
[1750500751902,21.99849934,142.62,142.59,6.74]
[1750500752101,7.85433927,142.61,142.6,9.47748451]
[1750500752514,7.85433927,142.61,142.59,6.02]
[1750500752719,5.23548879,142.6,142.59,6.74]
[1750500752917,5.23548879,142.6,142.59,15.49748451]
[1750500753315,5.23548879,142.6,142.59,16.21748451]
[1750500753716,5.23548879,142.6,142.59,23.23059903]
[1750500755334,5.23548879,142.6,142.59,22.51059903]
[1750500756430,23.88513765,142.61,142.59,22.51059903]
[1750500756732,23.878795,142.61,142.6,16.49010723]
[1750500756920,23.878795,142.63,142.6,34.74166403]
[1750500757112,18.64964886,142.63,142.62,9.47748451]
[1750500757317,5.22914614,142.63,142.62,9.47748451]
[1750500757518,7.84345394,142.64,142.62,9.47748451]
[1750500757734,21.26395666,142.64,142.63,9.47748451]
[1750500757943,18.64964886,142.64,142.63,9.47748451]
[1750500758142,23.87603304,142.64,142.63,9.47748451]
[1750500758318,19.37964886,142.63,142.6,24.54417952]
[1750500758538,5.95638418,142.62,142.6,34.02166403]
[1750500758755,0.73,142.62,142.6,34.02166403]
[1750500759051,0.73,142.62,142.6,7.01262272]
[1750500759347,19.37964886,142.61,142.6,7.01262272]
[1750500759723,19.37964886,142.61,142.59,13.03297106]
[1750500759924,24.60603304,142.61,142.59,22.51045557]
[1750500760151,18.64964886,142.61,142.6,9.47748451]
[1750500760945,18.64964886,142.61,142.6,16.49010723]
[1750500762144,18.64964886,142.61,142.6,7.01262272]
[1750500762333,18.64964886,142.61,142.6,16.49010723]
[1750500763450,18.64964886,142.61,142.6,16.49010723]
[1750500765035,5.22638418,142.64,142.61,0.72]
[1750500765236,18.64964886,142.64,142.63,9.47748451]
[1750500766550,18.64964886,142.64,142.63,16.48863223]
[1750500767133,5.22638418,142.65,142.64,0.72]
[1750500767335,5.22638418,142.68,142.65,0.72]
[1750500767554,5.22638418,142.69,142.67,9.47748451]
[1750500767960,18.64964886,142.68,142.66,9.47748451]
[1750500768259,18.64964886,142.69,142.65,6.0]
[1750500768571,0.74,142.68,142.67,7.00918202]
[1750500769131,18.64964886,142.7,142.67,16.48666653]
[1750500769340,18.64964886,142.7,142.66,7.00950863]
[1750500769341,9.47748451,142.69,142.66,7.00950863]
[1750500769543,14.70386869,142.69,142.66,7.00950863]
[1750500769740,17.31121179,142.69,142.66,7.00950863]
[1750500769938,0.74,142.68,142.66,7.00950863]
[1750500771567,0.74,142.68,142.66,16.48699314]
[1750500771857,7.83439816,142.69,142.66,16.48699314]
[1750500772057,5.22638418,142.69,142.67,9.47748451]
[1750500772367,19.38964886,142.7,142.67,9.47748451]
[1750500772368,24.61603304,142.7,142.67,9.47748451]
[1750500772544,23.87603304,142.7,142.67,9.47748451]
[1750500772860,24.61603304,142.7,142.67,9.47748451]
[1750500773645,5.22638418,142.7,142.69,9.47748451]
[1750500773844,18.64964886,142.7,142.67,0.72]
[1750500774167,18.64964886,142.7,142.68,9.47748451]
[1750500774357,18.64964886,142.7,142.66,50.533692]
[1750500774558,18.64964886,142.7,142.68,9.47748451]
[1750500775559,18.64964886,142.7,142.66,51.253692]
[1750500775750,18.64964886,142.7,142.68,9.47748451]
[1750500775949,18.64964886,142.7,142.69,7.00819959]
[1750500776666,5.05664354,142.71,142.69,16.4856841]
[1750500776872,23.7062924,142.71,142.7,9.47748451]
[1750500777245,5.05664354,142.71,142.7,9.47748451]
[1750500777969,5.05664354,142.71,142.7,16.48519298]
[1750500778282,0.74,142.73,142.7,7.00770847]
[1750500778573,18.64964886,142.72,142.7,16.48519298]
[1750500778763,0.74,142.73,142.7,16.48519298]
[1750500778967,0.74,142.73,142.68,17.52140721]
[1750500778968,18.64964886,142.7,142.69,13.04811855]
[1750500779355,28.12713337,142.73,142.69,22.52560306]
[1750500779556,18.64964886,142.71,142.69,22.52560306]
[1750500780779,5.22638418,142.73,142.7,9.47748451]
[1750500780997,19.38964886,142.74,142.71,9.47748451]
[1750500782795,19.38964886,142.74,142.72,7.00672645]
[1750500782977,18.38964886,142.74,142.72,7.00672645]
[1750500783381,18.38964886,142.74,142.72,16.48421096]
[1750500783779,5.22638418,142.76,142.73,9.47748451]
[1750500783973,5.96638418,142.76,142.73,9.47748451]
[1750500784675,18.95190195,142.77,142.73,9.47748451]
[1750500785076,19.38964886,142.75,142.72,16.48421096]
[1750500785277,0.74,142.74,142.72,16.48421096]
[1750500785465,0.74,142.74,142.72,7.00672645]
[1750500785866,19.38964886,142.75,142.72,16.48421096]
[1750500786480,0.74,142.74,142.72,7.00672645]
[1750500788796,18.64964886,142.75,142.72,9.47748451]
[1750500788993,19.38964886,142.75,142.72,9.47748451]
[1750500789194,33.35351755,142.75,142.71,16.48470194]
[1750500789403,0.74,142.74,142.71,16.48470194]
[1750500790507,19.38964886,142.71,142.69,6.04]
[1750500790688,28.86713337,142.7,142.69,6.04]
[1750500791581,34.09351755,142.7,142.69,6.04]
[1750500792223,24.61603304,142.7,142.69,6.04]
[1750500792797,34.09351755,142.7,142.69,6.04]
[1750500795814,15.2060984,142.74,142.69,6.04]
[1750500795815,6.51801645,142.76,142.69,22.5256841]
[1750500796017,23.85838027,142.75,142.73,9.47748451]
[1750500796224,23.85838027,142.74,142.73,9.47748451]
[1750500796723,18.64964886,142.74,142.73,9.47748451]
[1750500796923,5.20873141,142.74,142.72,9.47748451]
[1750500797107,5.20873141,142.75,142.72,9.47748451]
[1750500797424,5.20873141,142.74,142.72,9.47748451]
[1750500797608,5.20873141,142.75,142.72,9.47748451]
[1750500797817,5.20910092,142.74,142.72,9.47748451]
[1750500797999,5.20910092,142.73,142.72,16.48421096]
[1750500798200,5.20910092,142.75,142.72,16.48421096]
[1750500798420,5.20910092,142.74,142.72,16.48421096]
[1750500798725,5.20910092,142.73,142.72,16.48421096]
[1750500798930,5.20910092,142.74,142.72,16.48421096]
[1750500799110,5.20910092,142.73,142.72,16.48421096]
[1750500799430,5.91910092,142.75,142.72,16.48421096]
[1750500799636,5.20910092,142.74,142.72,16.48421096]
[1750500799919,5.20910092,142.73,142.72,16.48421096]
[1750500800112,5.20910092,142.74,142.72,16.48421096]
[1750500800313,5.20910092,142.73,142.72,16.48421096]
[1750500800506,0.71,142.73,142.71,7.00721743]
[1750500800823,5.20910092,142.72,142.71,7.00721743]
[1750500802007,5.20910092,142.72,142.69,24.37940589]
[1750500802296,5.20910092,142.71,142.7,7.00770847]
[1750500802515,5.20910092,142.72,142.7,7.00770847]
[1750500802708,5.20910092,142.71,142.7,7.74770847]
[1750500802906,5.20910092,142.72,142.7,7.74770847]
[1750500803110,5.20910092,142.71,142.7,7.74770847]
[1750500803308,5.20910092,142.71,142.7,7.00770847]
[1750500804332,5.20910092,142.71,142.7,7.74770847]
[1750500804943,15.39658543,142.71,142.69,6.12]
[1750500805249,14.68658543,142.7,142.69,13.12819959]
[1750500805621,15.39658543,142.7,142.69,6.12]
[1750500805841,34.04623429,142.7,142.69,6.12]
[1750500806034,34.04623429,142.7,142.67,7.00901089]
[1750500806234,14.68658543,142.69,142.67,7.00901089]
[1750500806437,5.20910092,142.68,142.66,7.00950748]
[1750500806649,9.47748451,142.69,142.66,7.00950748]
[1750500806851,5.22447049,142.68,142.66,7.00950748]
[1750500807032,9.47748451,142.68,142.66,7.00950748]
[1750500807733,5.22722517,142.67,142.66,7.00950748]
[1750500808934,5.22722517,142.67,142.65,7.01016473]
[1750500809126,5.22722517,142.66,142.65,7.01016473]
[1750500809358,5.22722517,142.68,142.65,17.22764924]
[1750500809533,5.22722517,142.67,142.65,17.22764924]
[1750500809733,5.23323326,142.66,142.65,17.22764924]
[1750500809943,5.23323326,142.68,142.65,7.75016473]
[1750500810129,5.23323326,142.67,142.65,17.22764924]
[1750500810331,5.23323326,142.66,142.65,7.75016473]
[1750500810553,5.23323326,142.68,142.65,17.22764924]
[1750500810750,5.23323326,142.67,142.65,17.22764924]
[1750500810950,5.23323326,142.66,142.65,17.22764924]
[1750500813048,5.23323326,142.67,142.65,17.22764924]
[1750500813247,12.09556857,142.69,142.65,17.22764924]
[1750500813438,5.23602775,142.68,142.65,17.22764924]
[1750500813762,5.23602775,142.67,142.65,17.22764924]
[1750500813930,12.09556857,142.69,142.65,17.22764924]
[1750500814131,5.23609258,142.68,142.65,17.22764924]
[1750500814360,5.23609258,142.67,142.66,10.21748451]
[1750500814550,5.23609258,142.68,142.66,9.47748451]
[1750500814858,2.61808406,142.69,142.67,0.74]
[1750500815055,5.23637881,142.68,142.67,10.21748451]
[1750500815261,5.23637881,142.69,142.67,10.21748451]
[1750500815459,12.09571062,142.71,142.67,9.47748451]
[1750500815765,5.23590936,142.7,142.69,7.00819959]
[1750500816141,5.23590936,142.7,142.69,17.2256841]
[1750500818864,5.23590936,142.7,142.69,7.00819959]
[1750500819064,7.85471916,142.7,142.69,7.00819959]
[1750500819278,5.23590936,142.7,142.69,7.00819959]
[1750500821975,5.23590936,142.7,142.69,17.2256841]
[1750500822556,5.23590936,142.7,142.69,16.4856841]
[1750500823457,7.85510816,142.7,142.69,7.00819959]
[1750500823652,23.88555822,142.7,142.67,7.00918202]
[1750500823857,7.85533225,142.69,142.67,7.74918202]
[1750500824085,5.23590936,142.68,142.67,17.22666653]
[1750500825352,5.23590936,142.68,142.67,7.74918202]
[1750500825555,5.23590936,142.68,142.67,16.48666653]
[1750500827175,5.23590936,142.68,142.67,7.00918202]
[1750500827493,18.0226397,142.68,142.66,7.00967334]
[1750500827688,6.51137615,142.7,142.66,17.21715785]
[1750500827689,5.23590936,142.67,142.66,17.21715785]
[1750500830801,5.23590936,142.67,142.66,16.48715785]
[1750500831972,19.33964886,142.66,142.65,7.01016473]
[1750500832175,38.77638643,142.66,142.65,7.01016473]
[1750500832378,41.39732624,142.66,142.62,7.74163932]
[1750500832582,7.85684917,142.65,142.62,17.21912383]
[1750500832887,5.23590936,142.64,142.62,17.21912383]
[1750500833104,5.2414527,142.63,142.62,17.21912383]
[1750500833405,2.62093981,142.65,142.62,34.74822213]
[1750500833620,5.24142223,142.64,142.62,34.74822213]
[1750500833827,2.62093981,142.65,142.63,10.20748451]
[1750500834014,5.24090941,142.64,142.63,17.21863223]
[1750500835829,5.24090941,142.64,142.63,9.47748451]